[Event "*** Titled Tuesday 3|2 Blitz (Late)"]
[Site "Chess.com"]
[Date "2016.12.06"]
[Round "7"]
[White "CemilCan"]
[Black "Bishops83"]
[Result "1-0"]
[WhiteElo "2493"]
[BlackElo "2283"]
[TimeControl "180+2"]
[EndTime "18:25:02 PST"]
[Termination "CemilCan won by checkmate"]

1. e4 {[%clk 0:02:59.3]} 1... c5 {[%clk 0:02:59.5]} 2. Nf3 {[%clk 0:03:00]} 2...
Nc6 {[%clk 0:02:59.4]} 3. d4 {[%clk 0:03:00.4]} 3... cxd4 {[%clk 0:03:01.3]} 4.
Nxd4 {[%clk 0:03:01.9]} 4... Nf6 {[%clk 0:03:02.1]} 5. Nc3 {[%clk 0:03:01]} 5...
e5 {[%clk 0:03:03.6]} 6. Ndb5 {[%clk 0:03:01.8]} 6... d6 {[%clk 0:03:05.1]} 7.
Nd5 {[%clk 0:03:02.4]} 7... Nxd5 {[%clk 0:03:03]} 8. exd5 {[%clk 0:03:04.3]}
8... Nb8 {[%clk 0:03:03.9]} 9. Qf3 {[%clk 0:03:05.3]} 9... Be7 {[%clk
0:02:39.6]} 10. Qc3 {[%clk 0:03:04.4]} 10... Na6 {[%clk 0:02:35.2]} 11. Be3
{[%clk 0:03:05.9]} 11... O-O {[%clk 0:02:17.4]} 12. Nxa7 {[%clk 0:03:05.6]}
12... Bd7 {[%clk 0:01:57.3]} 13. Bxa6 {[%clk 0:03:02.6]} 13... bxa6 {[%clk
0:01:59.2]} 14. O-O {[%clk 0:03:02.2]} 14... Qb8 {[%clk 0:01:54.5]} 15. Nc6
{[%clk 0:02:57.1]} 15... Bxc6 {[%clk 0:01:55.6]} 16. dxc6 {[%clk 0:02:57.1]}
16... Rc8 {[%clk 0:01:51]} 17. f4 {[%clk 0:02:42.6]} 17... Qb5 {[%clk
0:01:40.6]} 18. fxe5 {[%clk 0:02:42]} 18... Rxc6 {[%clk 0:01:37.7]} 19. Qa3
{[%clk 0:02:23.5]} 19... Rxc2 {[%clk 0:01:24.1]} 20. Rad1 {[%clk 0:02:07.5]}
20... Qb7 {[%clk 0:01:16.8]} 21. Rd2 {[%clk 0:01:56.2]} 21... Rxd2 {[%clk
0:01:17.8]} 22. Bxd2 {[%clk 0:01:58.1]} 22... dxe5 {[%clk 0:01:11.2]} 23. Qc3
{[%clk 0:01:58.6]} 23... Qd5 {[%clk 0:01:04.7]} 24. Be3 {[%clk 0:01:43.4]} 24...
Rd8 {[%clk 0:00:59.5]} 25. Qc7 {[%clk 0:01:39.5]} 25... Bf6 {[%clk 0:00:51.7]}
26. h3 {[%clk 0:01:37.5]} 26... e4 {[%clk 0:00:49.3]} 27. b3 {[%clk 0:01:24.4]}
27... Be5 {[%clk 0:00:50.4]} 28. Qa7 {[%clk 0:01:19.6]} 28... a5 {[%clk
0:00:44.8]} 29. Qb6 {[%clk 0:00:51.8]} 29... Rc8 {[%clk 0:00:42.3]} 30. Kh1
{[%clk 0:00:41.5]} 30... Rc2 {[%clk 0:00:39.4]} 31. a4 {[%clk 0:00:29.5]} 31...
h6 {[%clk 0:00:40.4]} 32. Qb5 {[%clk 0:00:27.5]} 32... Qxb5 {[%clk 0:00:31.5]}
33. axb5 {[%clk 0:00:29.4]} 33... Rb2 {[%clk 0:00:29.6]} 34. b6 {[%clk
0:00:23.3]} 34... Rxb3 {[%clk 0:00:28.4]} 35. Bg1 {[%clk 0:00:24.9]} 35... a4
{[%clk 0:00:26.7]} 36. Rd1 {[%clk 0:00:22.8]} 36... a3 {[%clk 0:00:27]} 37. Rd8+
{[%clk 0:00:23.7]} 37... Kh7 {[%clk 0:00:27.6]} 38. Ra8 {[%clk 0:00:25.6]} 38...
Bb2 {[%clk 0:00:27.1]} 39. g3 {[%clk 0:00:21.5]} 39... e3 {[%clk 0:00:28.2]} 40.
Kg2 {[%clk 0:00:22.6]} 40... Rxb6 {[%clk 0:00:27.9]} 41. Bxe3 {[%clk 0:00:23.4]}
41... Re6 {[%clk 0:00:29.5]} 42. Kf3 {[%clk 0:00:24.6]} 42... Rf6+ {[%clk
0:00:30.4]} 43. Ke2 {[%clk 0:00:25.7]} 43... Rc6 {[%clk 0:00:32]} 44. Kd2 {[%clk
0:00:27.1]} 44... Rd6+ {[%clk 0:00:31]} 45. Ke2 {[%clk 0:00:28.4]} 45... Re6
{[%clk 0:00:32]} 46. Kf3 {[%clk 0:00:29.4]} 46... Rc6 {[%clk 0:00:32.3]} 47. Ra7
{[%clk 0:00:30.7]} 47... Kg6 {[%clk 0:00:32.5]} 48. g4 {[%clk 0:00:30.8]} 48...
f6 {[%clk 0:00:32.3]} 49. Bd2 {[%clk 0:00:31.2]} 49... Rc2 {[%clk 0:00:32.4]}
50. Bb4 {[%clk 0:00:32.2]} 50... Rh2 {[%clk 0:00:31.6]} 51. Bf8 {[%clk
0:00:32.5]} 51... Rxh3+ {[%clk 0:00:32.3]} 52. Kg2 {[%clk 0:00:33.6]} 52... Rb3
{[%clk 0:00:31.8]} 53. Rxg7# {[%clk 0:00:33.8]} 1-0

[Event "*** Titled Tuesday 3|2 Blitz (Late)"]
[Site "Chess.com"]
[Date "2016.12.06"]
[Round "7"]
[White "visa"]
[Black "Rating-Schmating"]
[Result "1/2-1/2"]
[WhiteElo "2144"]
[BlackElo "2233"]
[TimeControl "180+2"]
[EndTime "18:25:13 PST"]
[Termination "Game drawn - insufficient material"]

1. e4 {[%clk 0:03:02]} 1... e6 {[%clk 0:03:00.9]} 2. d4 {[%clk 0:03:00.9]} 2...
d5 {[%clk 0:03:01.8]} 3. exd5 {[%clk 0:03:02.1]} 3... exd5 {[%clk 0:03:02.8]} 4.
Nf3 {[%clk 0:03:03.1]} 4... Bd6 {[%clk 0:03:03.5]} 5. c4 {[%clk 0:03:03.3]} 5...
dxc4 {[%clk 0:03:02.4]} 6. Bxc4 {[%clk 0:03:03.6]} 6... Nf6 {[%clk 0:03:03.5]}
7. h3 {[%clk 0:03:03.3]} 7... O-O {[%clk 0:03:04.1]} 8. O-O {[%clk 0:03:04.1]}
8... Bf5 {[%clk 0:03:04.3]} 9. Nc3 {[%clk 0:03:04.4]} 9... c6 {[%clk 0:03:04]}
10. Bg5 {[%clk 0:03:04.7]} 10... h6 {[%clk 0:03:03.3]} 11. Bh4 {[%clk
0:02:56.9]} 11... Nbd7 {[%clk 0:03:03.4]} 12. Re1 {[%clk 0:02:50]} 12... Qc7
{[%clk 0:03:02.6]} 13. Rc1 {[%clk 0:02:42.7]} 13... Rae8 {[%clk 0:02:59.3]} 14.
Rxe8 {[%clk 0:02:17.4]} 14... Rxe8 {[%clk 0:02:59.9]} 15. Nb5 {[%clk 0:02:02.6]}
15... cxb5 {[%clk 0:02:54.5]} 16. Bxf7+ {[%clk 0:02:03.2]} 16... Kxf7 {[%clk
0:02:55.8]} 17. Rxc7 {[%clk 0:02:04.1]} 17... Bxc7 {[%clk 0:02:57.2]} 18. Qb3+
{[%clk 0:01:58.7]} 18... Be6 {[%clk 0:02:51.5]} 19. Qxb5 {[%clk 0:01:58.7]}
19... Bd5 {[%clk 0:02:49.6]} 20. Bxf6 {[%clk 0:01:26.9]} 20... Nxf6 {[%clk
0:02:47.9]} 21. a4 {[%clk 0:01:14.2]} 21... Bc6 {[%clk 0:02:41.6]} 22. Qc4+
{[%clk 0:01:10.9]} 22... Kf8 {[%clk 0:02:39.6]} 23. Ne5 {[%clk 0:00:58.5]} 23...
Bxe5 {[%clk 0:02:36]} 24. Qc5+ {[%clk 0:00:59.4]} 24... Bd6 {[%clk 0:02:31.1]}
25. Qxd6+ {[%clk 0:00:59.4]} 25... Kf7 {[%clk 0:02:32.7]} 26. a5 {[%clk
0:00:51.7]} 26... Re7 {[%clk 0:02:32.7]} 27. a6 {[%clk 0:00:51.7]} 27... Rd7
{[%clk 0:02:30.6]} 28. axb7 {[%clk 0:00:48.5]} 28... Bxb7 {[%clk 0:02:23.7]} 29.
Qc5 {[%clk 0:00:48.2]} 29... Bd5 {[%clk 0:02:20.8]} 30. b4 {[%clk 0:00:48.5]}
30... Ke6 {[%clk 0:02:20.4]} 31. b5 {[%clk 0:00:49.4]} 31... Ne4 {[%clk
0:02:21.4]} 32. Qc8 {[%clk 0:00:48]} 32... Nd6 {[%clk 0:02:18.1]} 33. Qg8+
{[%clk 0:00:46.6]} 33... Rf7 {[%clk 0:02:16.7]} 34. f4 {[%clk 0:00:44.9]} 34...
Nf5 {[%clk 0:02:02.6]} 35. Qc8+ {[%clk 0:00:38.5]} 35... Kf6 {[%clk 0:02:01]}
36. Qd8+ {[%clk 0:00:35.5]} 36... Ne7 {[%clk 0:01:57.3]} 37. g4 {[%clk
0:00:34.8]} 37... g6 {[%clk 0:01:50.8]} 38. Qh8+ {[%clk 0:00:33.7]} 38... Ke6
{[%clk 0:01:51.9]} 39. Qxh6 {[%clk 0:00:25.8]} 39... Kd7 {[%clk 0:01:46.5]} 40.
Qg5 {[%clk 0:00:23.1]} 40... Be6 {[%clk 0:01:43.9]} 41. Qe5 {[%clk 0:00:22]}
41... Nd5 {[%clk 0:01:43.6]} 42. Qb8 {[%clk 0:00:21.4]} 42... Nxf4 {[%clk
0:01:38.1]} 43. Qxa7+ {[%clk 0:00:21.9]} 43... Kd6 {[%clk 0:01:34.1]} 44. Qb8+
{[%clk 0:00:20.8]} 44... Kd5 {[%clk 0:01:31.4]} 45. Qe5+ {[%clk 0:00:21.2]}
45... Kc4 {[%clk 0:01:32.7]} 46. b6 {[%clk 0:00:21.5]} 46... Bd5 {[%clk
0:01:27.9]} 47. h4 {[%clk 0:00:17.8]} 47... Rb7 {[%clk 0:01:19.8]} 48. Qxf4
{[%clk 0:00:16.5]} 48... Rxb6 {[%clk 0:01:19.8]} 49. h5 {[%clk 0:00:16.4]} 49...
gxh5 {[%clk 0:01:19.7]} 50. gxh5 {[%clk 0:00:17.7]} 50... Rb1+ {[%clk
0:01:20.9]} 51. Kf2 {[%clk 0:00:18.4]} 51... Rb2+ {[%clk 0:01:20.4]} 52. Kg3
{[%clk 0:00:19.5]} 52... Rg2+ {[%clk 0:01:21]} 53. Kh4 {[%clk 0:00:20.7]} 53...
Rg1 {[%clk 0:01:20.1]} 54. h6 {[%clk 0:00:20.9]} 54... Rh1+ {[%clk 0:01:21]} 55.
Kg5 {[%clk 0:00:22]} 55... Rg1+ {[%clk 0:01:21.7]} 56. Kf6 {[%clk 0:00:22.6]}
56... Rh1 {[%clk 0:01:21.2]} 57. Qc7+ {[%clk 0:00:21]} 57... Kd3 {[%clk
0:01:21.2]} 58. h7 {[%clk 0:00:21.7]} 58... Be4 {[%clk 0:01:21]} 59. Qg3+ {[%clk
0:00:18.7]} 59... Kxd4 {[%clk 0:01:18]} 60. Qe5+ {[%clk 0:00:19.8]} 60... Kd3
{[%clk 0:01:17.2]} 61. Qxe4+ {[%clk 0:00:14.4]} 61... Kxe4 {[%clk 0:01:17.2]}
62. Kg7 {[%clk 0:00:16.3]} 62... Rxh7+ {[%clk 0:01:18.2]} 63. Kxh7 {[%clk
0:00:17.4]} 1/2-1/2

[Event "*** Titled Tuesday 3|2 Blitz (Late)"]
[Site "Chess.com"]
[Date "2016.12.06"]
[Round "7"]
[White "Scott-fox21"]
[Black "Fh2411"]
[Result "0-1"]
[WhiteElo "2179"]
[BlackElo "2364"]
[TimeControl "180+2"]
[EndTime "18:25:26 PST"]
[Termination "Fh2411 won by resignation"]

1. d4 {[%clk 0:03:02]} 1... d5 {[%clk 0:02:54.3]} 2. c4 {[%clk 0:03:02.6]} 2...
c6 {[%clk 0:02:55.3]} 3. Nf3 {[%clk 0:03:03.4]} 3... Nf6 {[%clk 0:02:56.3]} 4.
Qc2 {[%clk 0:03:04.5]} 4... dxc4 {[%clk 0:02:55.4]} 5. Qxc4 {[%clk 0:03:05.5]}
5... Bf5 {[%clk 0:02:56.9]} 6. g3 {[%clk 0:03:04.7]} 6... e6 {[%clk 0:02:58]} 7.
Bg2 {[%clk 0:03:05.6]} 7... Nbd7 {[%clk 0:02:57]} 8. O-O {[%clk 0:03:06.7]} 8...
Be7 {[%clk 0:02:51.5]} 9. e3 {[%clk 0:03:07.9]} 9... O-O {[%clk 0:02:48.8]} 10.
Rd1 {[%clk 0:03:08.8]} 10... Rc8 {[%clk 0:02:46.3]} 11. Nc3 {[%clk 0:03:09]}
11... b5 {[%clk 0:02:45.1]} 12. Qe2 {[%clk 0:03:05]} 12... b4 {[%clk 0:02:40.9]}
13. Nb1 {[%clk 0:03:05.8]} 13... c5 {[%clk 0:02:34.3]} 14. dxc5 {[%clk
0:03:03.9]} 14... Rxc5 {[%clk 0:02:30.7]} 15. Nbd2 {[%clk 0:03:04.7]} 15... Rc2
{[%clk 0:02:24.2]} 16. Nd4 {[%clk 0:03:00.9]} 16... Ne5 {[%clk 0:02:02.7]} 17.
Nxc2 {[%clk 0:02:51.6]} 17... Bd3 {[%clk 0:01:53.8]} 18. Nf3 {[%clk 0:01:50.8]}
18... Bxe2 {[%clk 0:01:52.6]} 19. Rxd8 {[%clk 0:01:51.2]} 19... Rxd8 {[%clk
0:01:53.1]} 20. Nfd4 {[%clk 0:01:33.8]} 20... Bd3 {[%clk 0:01:50]} 21. Ne1
{[%clk 0:01:19.6]} 21... Be4 {[%clk 0:01:41.4]} 22. Bd2 {[%clk 0:01:12.1]} 22...
Bxg2 {[%clk 0:01:40.2]} 23. Kxg2 {[%clk 0:01:10.5]} 23... Nc4 {[%clk 0:01:37.1]}
24. Bc1 {[%clk 0:01:00.8]} 24... Rc8 {[%clk 0:01:31.6]} 25. b3 {[%clk 0:01:01]}
25... Nb6 {[%clk 0:01:15.1]} 26. Bd2 {[%clk 0:00:59.8]} 26... Ne4 {[%clk
0:01:14.5]} 27. Nef3 {[%clk 0:00:54.9]} 27... e5 {[%clk 0:01:09.5]} 28. Nf5
{[%clk 0:00:55.5]} 28... Bf8 {[%clk 0:01:08.2]} 29. Be1 {[%clk 0:00:50.2]} 29...
g6 {[%clk 0:01:06.3]} 30. N5h4 {[%clk 0:00:51.4]} 30... f6 {[%clk 0:01:02.3]}
31. Nd2 {[%clk 0:00:46.9]} 31... Nc5 {[%clk 0:00:42]} 32. Rc1 {[%clk 0:00:42.7]}
32... Nd3 {[%clk 0:00:41.3]} 33. Rxc8 {[%clk 0:00:41.9]} 33... Nxc8 {[%clk
0:00:43.2]} 34. Nhf3 {[%clk 0:00:38.3]} 34... Nc1 {[%clk 0:00:40.8]} 35. Ne4
{[%clk 0:00:29.5]} 35... Kf7 {[%clk 0:00:40.8]} 36. g4 {[%clk 0:00:19.4]} 36...
Ke6 {[%clk 0:00:36.7]} 37. g5 {[%clk 0:00:20.1]} 37... f5 {[%clk 0:00:37.3]} 38.
Nf6 {[%clk 0:00:21.2]} 38... h6 {[%clk 0:00:27.8]} 39. Ne8 {[%clk 0:00:19.4]}
39... Nxa2 {[%clk 0:00:22.8]} 40. Nc7+ {[%clk 0:00:18.9]} 40... Kd7 {[%clk
0:00:23.4]} 41. Nd5 {[%clk 0:00:19.2]} 41... hxg5 {[%clk 0:00:22.9]} 42. Nxe5+
{[%clk 0:00:19]} 42... Ke6 {[%clk 0:00:23.8]} 43. Nxg6 {[%clk 0:00:19.5]} 43...
Bd6 {[%clk 0:00:24.4]} 44. e4 {[%clk 0:00:17]} 44... fxe4 {[%clk 0:00:24.6]} 45.
Ne3 {[%clk 0:00:18.1]} 45... Kf7 {[%clk 0:00:25.3]} 46. Nf5 {[%clk 0:00:15.2]}
46... Kxg6 {[%clk 0:00:25.7]} 47. Nxd6 {[%clk 0:00:15.9]} 47... Nxd6 {[%clk
0:00:27.4]} 48. Kf1 {[%clk 0:00:15.9]} 48... Nb5 {[%clk 0:00:27.6]} 49. Ke2
{[%clk 0:00:13.3]} 49... Nd4+ {[%clk 0:00:28.2]} 50. Ke3 {[%clk 0:00:14.1]}
50... Nc2+ {[%clk 0:00:29.1]} 0-1

[Event "*** Titled Tuesday 3|2 Blitz (Late)"]
[Site "Chess.com"]
[Date "2016.12.06"]
[Round "7"]
[White "Pierrebl"]
[Black "nonscitis"]
[Result "1-0"]
[WhiteElo "2440"]
[BlackElo "2361"]
[TimeControl "180+2"]
[EndTime "18:25:47 PST"]
[Termination "Pierrebl won on time"]

1. Nf3 {[%clk 0:03:02]} 1... Nf6 {[%clk 0:02:58.3]} 2. g3 {[%clk 0:03:03.9]}
2... e6 {[%clk 0:02:55]} 3. Bg2 {[%clk 0:03:05.8]} 3... b5 {[%clk 0:02:50.7]} 4.
O-O {[%clk 0:03:07.7]} 4... Bb7 {[%clk 0:02:50.9]} 5. d3 {[%clk 0:03:06]} 5...
d5 {[%clk 0:02:50.1]} 6. e4 {[%clk 0:03:07.9]} 6... dxe4 {[%clk 0:02:49]} 7. Ng5
{[%clk 0:03:09]} 7... Be7 {[%clk 0:02:48.4]} 8. Nc3 {[%clk 0:03:08.8]} 8... O-O
{[%clk 0:02:39.6]} 9. Nxb5 {[%clk 0:03:05.3]} 9... c6 {[%clk 0:02:38]} 10. Nxe4
{[%clk 0:03:00.4]} 10... Nbd7 {[%clk 0:02:35.7]} 11. Nbc3 {[%clk 0:02:57.9]}
11... Nxe4 {[%clk 0:02:32.7]} 12. Nxe4 {[%clk 0:02:57.4]} 12... Nf6 {[%clk
0:02:34.2]} 13. Nxf6+ {[%clk 0:02:55.8]} 13... Bxf6 {[%clk 0:02:31.8]} 14. c3
{[%clk 0:02:57.7]} 14... Rc8 {[%clk 0:02:28.2]} 15. d4 {[%clk 0:02:54.5]} 15...
Qc7 {[%clk 0:02:24.3]} 16. Bf4 {[%clk 0:02:53.1]} 16... Qb6 {[%clk 0:02:21.8]}
17. Qb3 {[%clk 0:02:51.4]} 17... Rfd8 {[%clk 0:02:16.2]} 18. Rfe1 {[%clk
0:02:49.1]} 18... h6 {[%clk 0:02:04.5]} 19. Be5 {[%clk 0:02:39.2]} 19... Be7
{[%clk 0:02:01.7]} 20. h4 {[%clk 0:02:34.8]} 20... Ba6 {[%clk 0:01:59.4]} 21.
Bf4 {[%clk 0:02:25.9]} 21... Bf6 {[%clk 0:01:50.3]} 22. Be3 {[%clk 0:02:26.5]}
22... Qc7 {[%clk 0:01:49]} 23. Qc2 {[%clk 0:02:25.2]} 23... Bb7 {[%clk
0:01:44.4]} 24. Rad1 {[%clk 0:02:10]} 24... Qb6 {[%clk 0:01:37.7]} 25. Rd2
{[%clk 0:01:57.8]} 25... Qa5 {[%clk 0:01:35.5]} 26. a3 {[%clk 0:01:53.6]} 26...
Qh5 {[%clk 0:01:33]} 27. Qb3 {[%clk 0:01:38.2]} 27... Ba8 {[%clk 0:01:30.4]} 28.
Qa4 {[%clk 0:01:35.9]} 28... Qg4 {[%clk 0:01:00.8]} 29. Qxa7 {[%clk 0:01:32.9]}
29... c5 {[%clk 0:00:59.4]} 30. Bxa8 {[%clk 0:01:27.9]} 30... Rxa8 {[%clk
0:00:55.9]} 31. Qxc5 {[%clk 0:01:26.8]} 31... Bxh4 {[%clk 0:00:56.3]} 32. Qc6
{[%clk 0:01:05.4]} 32... Bxg3 {[%clk 0:00:43.5]} 33. Qg2 {[%clk 0:01:03.3]}
33... Ra5 {[%clk 0:00:39.8]} 34. fxg3 {[%clk 0:01:00.2]} 34... Rh5 {[%clk
0:00:39.4]} 35. Rf2 {[%clk 0:00:53]} 35... Rdd5 {[%clk 0:00:28.8]} 36. Rf4
{[%clk 0:00:51.2]} 36... Qg6 {[%clk 0:00:29]} 37. Ref1 {[%clk 0:00:51.9]} 37...
Rdg5 {[%clk 0:00:25]} 38. R1f3 {[%clk 0:00:47.3]} 38... f6 {[%clk 0:00:21.5]}
39. Bf2 {[%clk 0:00:41.9]} 39... e5 {[%clk 0:00:17.5]} 40. dxe5 {[%clk
0:00:40.6]} 40... fxe5 {[%clk 0:00:15]} 41. Rf8+ {[%clk 0:00:40.4]} 41... Kh7
{[%clk 0:00:12.3]} 42. Be3 {[%clk 0:00:37.4]} 42... Rg4 {[%clk 0:00:10.9]} 43.
Rd8 {[%clk 0:00:20.6]} 43... e4 {[%clk 0:00:10.9]} 44. Rff8 {[%clk 0:00:20.1]}
44... Qc6 {[%clk 0:00:05.4]} 45. Rh8+ {[%clk 0:00:20]} 45... Kg6 {[%clk
0:00:06]} 46. Bf4 {[%clk 0:00:18.8]} 46... Rd5 {[%clk 0:00:05.8]} 47. Qxe4+
{[%clk 0:00:18.1]} 47... Kh5 {[%clk 0:00:06.3]} 48. Qxd5+ {[%clk 0:00:18.3]}
48... g5 {[%clk 0:00:06.9]} 49. Qxc6 {[%clk 0:00:17]} 1-0

[Event "*** Titled Tuesday 3|2 Blitz (Late)"]
[Site "Chess.com"]
[Date "2016.12.06"]
[Round "7"]
[White "amurdercastle"]
[Black "capatl"]
[Result "0-1"]
[WhiteElo "2395"]
[BlackElo "2396"]
[TimeControl "180+2"]
[EndTime "18:25:57 PST"]
[Termination "capatl won by resignation"]

1. d4 {[%clk 0:03:02]} 1... d5 {[%clk 0:02:38]} 2. c4 {[%clk 0:03:03.9]} 2... e6
{[%clk 0:02:35]} 3. Nf3 {[%clk 0:03:04.9]} 3... Nf6 {[%clk 0:02:35.4]} 4. g3
{[%clk 0:03:05.8]} 4... Be7 {[%clk 0:02:35.6]} 5. Bg2 {[%clk 0:03:06.7]} 5...
O-O {[%clk 0:02:37.1]} 6. O-O {[%clk 0:03:08.6]} 6... b6 {[%clk 0:02:37.6]} 7.
Qc2 {[%clk 0:03:09.5]} 7... Bb7 {[%clk 0:02:38.7]} 8. Bf4 {[%clk 0:03:09.1]}
8... Nbd7 {[%clk 0:02:34.9]} 9. Rd1 {[%clk 0:03:05.6]} 9... Rc8 {[%clk
0:02:34.5]} 10. Ne5 {[%clk 0:02:56.1]} 10... c6 {[%clk 0:02:23.7]} 11. Nc3
{[%clk 0:02:50.8]} 11... Nxe5 {[%clk 0:02:20]} 12. dxe5 {[%clk 0:02:52.7]} 12...
Nd7 {[%clk 0:02:20.7]} 13. cxd5 {[%clk 0:02:28.7]} 13... cxd5 {[%clk 0:02:19.5]}
14. e4 {[%clk 0:02:27.6]} 14... dxe4 {[%clk 0:02:04.5]} 15. Bxe4 {[%clk
0:02:12.8]} 15... Bxe4 {[%clk 0:02:05.1]} 16. Qxe4 {[%clk 0:02:14.7]} 16... Qc7
{[%clk 0:01:34.9]} 17. Nb5 {[%clk 0:02:14]} 17... Nc5 {[%clk 0:01:35.8]} 18. Qe2
{[%clk 0:01:56]} 18... Qb7 {[%clk 0:01:20.2]} 19. Nd6 {[%clk 0:01:53.5]} 19...
Bxd6 {[%clk 0:01:17.3]} 20. exd6 {[%clk 0:01:55.4]} 20... Nd7 {[%clk 0:01:14.9]}
21. Bg5 {[%clk 0:01:42.9]} 21... Rc5 {[%clk 0:01:10]} 22. Be7 {[%clk 0:01:41.7]}
22... Rfc8 {[%clk 0:01:10.9]} 23. h4 {[%clk 0:01:34.4]} 23... b5 {[%clk
0:01:01.3]} 24. h5 {[%clk 0:01:24.3]} 24... h6 {[%clk 0:00:59.8]} 25. Rd2 {[%clk
0:01:03.4]} 25... a6 {[%clk 0:00:57.1]} 26. Rad1 {[%clk 0:01:03.9]} 26... Re5
{[%clk 0:00:39.4]} 27. Qg4 {[%clk 0:01:02.8]} 27... Qe4 {[%clk 0:00:35.7]} 28.
Qxe4 {[%clk 0:00:52.9]} 28... Rxe4 {[%clk 0:00:37.6]} 29. Kg2 {[%clk 0:00:52.6]}
29... Rc5 {[%clk 0:00:33.2]} 30. f3 {[%clk 0:00:52]} 30... Rec4 {[%clk 0:00:31]}
31. g4 {[%clk 0:00:52.2]} 31... Rc2 {[%clk 0:00:30.4]} 32. Kf2 {[%clk 0:00:48]}
32... f6 {[%clk 0:00:31.3]} 33. Bd8 {[%clk 0:00:41.1]} 33... Kf7 {[%clk
0:00:30.6]} 34. Ba5 {[%clk 0:00:40]} 34... e5 {[%clk 0:00:27.5]} 35. Bc3 {[%clk
0:00:32.7]} 35... Rxd2+ {[%clk 0:00:27.5]} 36. Rxd2 {[%clk 0:00:34.6]} 36... Rc4
{[%clk 0:00:27.1]} 37. a3 {[%clk 0:00:32.2]} 37... Ke6 {[%clk 0:00:27.7]} 38.
Bb4 {[%clk 0:00:33]} 38... Rd4 {[%clk 0:00:24.7]} 39. Rc2 {[%clk 0:00:26.7]}
39... Rc4 {[%clk 0:00:25.7]} 40. Rd2 {[%clk 0:00:20.6]} 40... Rc6 {[%clk
0:00:26.7]} 41. Ke3 {[%clk 0:00:19]} 41... Nb6 {[%clk 0:00:27.6]} 42. Ke4 {[%clk
0:00:18.3]} 42... Nc4 {[%clk 0:00:26.2]} 43. Rd1 {[%clk 0:00:16.4]} 43... Kd7
{[%clk 0:00:23.6]} 44. f4 {[%clk 0:00:16.8]} 44... Nxb2 {[%clk 0:00:22.7]} 45.
Rb1 {[%clk 0:00:16.7]} 45... Rc4+ {[%clk 0:00:20.2]} 46. Kf5 {[%clk 0:00:16.1]}
46... Rxf4+ {[%clk 0:00:21.3]} 47. Kg6 {[%clk 0:00:17.3]} 47... Rxg4+ {[%clk
0:00:22.5]} 48. Kh7 {[%clk 0:00:18.3]} 48... Nc4 {[%clk 0:00:22.7]} 49. Kg8
{[%clk 0:00:18]} 49... Rg5 {[%clk 0:00:22.7]} 50. Rd1 {[%clk 0:00:15.8]} 50...
e4 {[%clk 0:00:23.3]} 51. Re1 {[%clk 0:00:16]} 51... e3 {[%clk 0:00:24.6]} 52.
Re2 {[%clk 0:00:16.3]} 52... f5 {[%clk 0:00:25.8]} 53. Kf7 {[%clk 0:00:12.6]}
53... f4 {[%clk 0:00:26.6]} 54. Bc5 {[%clk 0:00:13.9]} 54... Rxc5 {[%clk
0:00:26.6]} 55. Kxg7 {[%clk 0:00:13.1]} 55... Rxh5 {[%clk 0:00:27.6]} 56. Kg6
{[%clk 0:00:14.1]} 56... Rd5 {[%clk 0:00:25.8]} 57. Kxh6 {[%clk 0:00:14.3]}
57... f3 {[%clk 0:00:27.1]} 58. Re1 {[%clk 0:00:15.1]} 58... f2 {[%clk
0:00:27.6]} 59. Rf1 {[%clk 0:00:16.2]} 59... Rf5 {[%clk 0:00:27.6]} 0-1